lending/lending_fUSD_20251114
["ID","MTS","AMOUNT","RATE_DAILY","PERIOD"]
[393963152,1763134543501,-500.0,0.000387,120]
[393963153,1763134543562,-500.0,0.000387,120]
[393963154,1763134543620,-500.0,0.000387,120]
[393963155,1763134543677,-500.0,0.000387,120]
[393963156,1763134543732,-500.0,0.000387,120]
[393963157,1763134543791,-500.0,0.000387,120]
[393963158,1763134543847,-500.0,0.000387,120]
[393963159,1763134543905,-500.0,0.000387,120]
[393963160,1763134543966,-500.0,0.000387,120]
[393963161,1763134544025,-150.82,0.00038748,120]
[393963162,1763134544082,-150.82,0.00038848,120]
[393963163,1763134544136,-493.72988224,0.000389,31]
[393963164,1763134544196,-150.82,0.00038948,120]
[393963165,1763134544255,-5058.57232094,0.00039,120]
[393963166,1763134544310,-151.0,0.00039,120]
[393963167,1763134544369,-150.82,0.00039048,120]
[393963168,1763134544431,-150.82,0.00039148,120]
[393963169,1763134544488,-150.82,0.00039248,120]
[393963170,1763134544541,-150.82,0.00039348,120]
[393963171,1763134544597,-150.82,0.00039448,120]
[393963172,1763134544647,-150.82,0.00039548,120]
[393963173,1763134544693,-1205.08355555,0.000396,120]
[393963174,1763134544980,-1593.71301059,0.000396,120]
[393963175,1763134545038,-1067.66,0.000396,30]
[393963176,1763134545093,-150.82,0.00039648,120]
[393963177,1763134545147,-150.82,0.00039748,120]
[393963178,1763134545197,-409.95,0.00039798,30]
[393963179,1763134545249,-150.82,0.00039848,120]
[393963180,1763134545302,-150.82,0.00039948,120]
[393963181,1763134545354,-200.0,0.0004,120]
[393963182,1763134545403,-1000.0,0.0004,120]
[393963183,1763134545454,-160.521122,0.0004,120]
[393963184,1763134545503,-160.521122,0.0004,120]
[393963185,1763134545550,-160.521122,0.0004,120]
[393963186,1763134545596,-160.521122,0.0004,120]
[393963187,1763134545644,-303.54517552,0.0004,120]
[393963188,1763134545697,-150.82,0.00040048,120]
[393963189,1763134545749,-150.82,0.00040148,120]
[393963190,1763134545800,-150.82,0.00040248,120]
[393963191,1763134545847,-1067.66,0.0004032,120]
[393963192,1763134545898,-150.82,0.00040348,120]
[393963193,1763134545949,-150.82,0.00040448,120]
[393963194,1763134545997,-152.880474,0.00040522,120]
[393963195,1763134546046,-150.82,0.00040548,120]
[393963196,1763134546101,-1400.455,0.00040566,58]
[393963197,1763134546148,-1793.02196876,0.00040637,50]
[393963198,1763134546199,-150.82,0.00040648,120]
[393963199,1763134546246,-1059.38357952,0.00040657,50]
[393963200,1763134546295,-1015.21641237,0.00040657,50]
[393963201,1763134546343,-1139.69366141,0.00040657,50]
[393963202,1763134546390,-1149.03805926,0.00040657,50]
[393963203,1763134546438,-1072.8887,0.00040657,50]
[393963204,1763134546487,-1027.01051195,0.00040657,50]
[393963205,1763134546535,-1129.30846032,0.00040657,50]
[393963206,1763134546583,-1134.00891916,0.00040657,50]
[393963207,1763134546634,-150.82,0.00040748,120]
[393963208,1763134546682,-6669.71,0.000408,30]
[393963209,1763134546738,-150.82,0.00040848,120]
[393963210,1763134546790,-150.82,0.00040948,120]
[393963211,1763134546840,-182.935204,0.00041,30]
[393963212,1763134546890,-478.82688331,0.00041,30]
[393963213,1763134546941,-1067.66,0.0004104,120]
[393963214,1763134546993,-150.82,0.00041048,120]
[393963215,1763134547054,-150.82,0.00041148,120]
[393963216,1763134547108,-150.82,0.00041248,120]
[393963217,1763134547164,-150.82,0.00041348,120]
[393963218,1763134547220,-150.82,0.00041448,120]
[393963219,1763134547271,-189.611872,0.00041458,120]
[393963220,1763134547323,-160.521122,0.00041458,120]
[393963221,1763134547373,-160.521122,0.00041458,120]
[393963222,1763134547426,-160.521122,0.00041458,120]
[393963223,1763134547478,-160.521122,0.00041458,120]
[393963224,1763134547529,-160.521122,0.00041458,120]
[393963225,1763134547579,-160.521122,0.00041458,120]
[393963226,1763134547628,-160.521122,0.00041458,120]
[393963227,1763134547696,-160.521122,0.00041458,120]
[393963228,1763134547758,-771.18303433,0.00041458,30]
[393963229,1763134547814,-151.0,0.00041458,95]
[393963230,1763134547872,-308.424561,0.00041458,30]
[393963231,1763134547937,-308.424561,0.00041458,30]
[393963232,1763134547999,-308.424561,0.00041458,30]
[393963233,1763134548065,-308.424561,0.00041458,30]
[393963234,1763134548130,-308.424561,0.00041458,30]
[393963235,1763134548189,-308.424561,0.00041458,30]
[393963236,1763134548240,-308.424561,0.00041458,30]
[393963237,1763134548294,-308.424561,0.00041458,30]
[393963238,1763134548346,-308.424561,0.00041458,30]
[393963239,1763134548397,-308.424561,0.00041458,30]
[393963240,1763134548447,-308.424561,0.00041458,30]
[393963241,1763134548499,-308.424553,0.00041458,30]
[393963242,1763134548566,-532.20960235,0.00041464,30]
[393963243,1763134548615,-743.0088648,0.00041466,30]
[393963244,1763134548665,-743.0088648,0.00041466,30]
[393963245,1763134548720,-237.35269066,0.00041467,30]
[393963246,1763134548770,-206.95849332,0.00041473,120]
[393963247,1763134548818,-1085.507066,0.000415,36]
[393963248,1763134548871,-150.82,0.00041548,120]
[393963249,1763134548928,-150.82,0.00041648,120]
[393963250,1763134548985,-150.82,0.00041748,120]
[393963251,1763134549038,-150.82,0.00041848,120]
[393963252,1763134549093,-150.82,0.00041948,120]
[393963253,1763134549143,-478.82688331,0.00042,120]
[393963254,1763134549197,-150.82,0.00042048,120]
[393963255,1763134549250,-150.82,0.00042148,120]
[393963256,1763134549302,-160.63,0.000422,30]
[393963257,1763134549355,-150.82,0.00042248,120]
[393963258,1763134549415,-150.82,0.00042348,120]
[393963259,1763134549473,-150.82,0.00042448,120]
[393963260,1763134549527,-150.82,0.00042548,120]
[393963261,1763134549582,-150.82,0.00042648,120]
[393963262,1763134549635,-150.82,0.00042748,120]
[393963263,1763134549690,-150.82,0.00042848,120]
[393963264,1763134549743,-150.82,0.00042948,120]
[393963265,1763134549794,-5000.0,0.00043,120]
[393963266,1763134549845,-5000.0,0.00043,120]
[393963267,1763134550041,-5000.0,0.00043,120]
[393963268,1763134550119,-10000.0,0.00043,120]
[393963269,1763134550170,-10000.0,0.00043,120]
[393963270,1763134550226,-10000.0,0.00043,120]
[393963271,1763134550276,-10000.0,0.00043,120]
[393963272,1763134550328,-10000.0,0.00043,120]
[393963273,1763134550381,-10000.0,0.00043,120]
[393963274,1763134550435,-10000.0,0.00043,120]
[393963275,1763134550485,-10000.0,0.00043,120]
[393963276,1763134550537,-20000.0,0.00043,120]
[393963277,1763134550586,-20000.0,0.00043,120]
[393963278,1763134550634,-20000.0,0.00043,120]
[393963279,1763134550683,-20000.0,0.00043,120]
[393963280,1763134550730,-10805.11035658,0.00043,120]
[393963281,1763134550776,-10000.0,0.00043,120]
[393963282,1763134550823,-5000.0,0.00043,120]
[393963283,1763134550869,-5000.0,0.00043,120]
[393963284,1763134550917,-5000.0,0.00043,120]
[393963285,1763134550968,-5000.0,0.00043,120]
[393963286,1763134551016,-5000.0,0.00043,120]
[393963287,1763134551063,-15000.0,0.00043,120]
[393963288,1763134551111,-3000.0,0.00043,120]
[393963289,1763134551160,-2000.0,0.00043,120]
[393963290,1763134551212,-20000.0,0.00043,120]
[393963291,1763134551262,-10000.0,0.00043,120]
[393963292,1763134551313,-10000.0,0.00043,120]
[393963293,1763134551364,-10000.0,0.00043,120]
[393963294,1763134551416,-30000.0,0.00043,120]
[393963295,1763134551473,-3000.0,0.00043,120]
[393963296,1763134551522,-2000.0,0.00043,120]
[393963297,1763134551570,-5000.0,0.00043,120]
[393963298,1763134551619,-5000.0,0.00043,120]
[393963299,1763134551666,-5000.0,0.00043,120]
[393963300,1763134551718,-5000.0,0.00043,120]
[393963301,1763134551773,-10000.0,0.00043,120]
[393963302,1763134551829,-5000.0,0.00043,120]
[393963303,1763134551887,-5000.0,0.00043,120]
[393963304,1763134551947,-10000.0,0.00043,120]
[393963305,1763134551999,-10000.0,0.00043,120]
[393963306,1763134552058,-150.82,0.00043048,120]
[393963307,1763134552116,-150.82,0.00043148,120]
[393963308,1763134552186,-150.82,0.00043248,120]
[393963309,1763134552249,-150.82,0.00043348,120]
[393963310,1763134552311,-150.82,0.00043448,120]
[393963311,1763134552367,-3000.0,0.000435,120]
[393963312,1763134552432,-150.82,0.00043548,120]
[393963313,1763134552505,-150.82,0.00043648,120]
[393963314,1763134552571,-150.82,0.00043748,120]
[393963315,1763134552628,-500.0,0.00043836,31]
[393963316,1763134552688,-150.82,0.00043848,120]
[393963317,1763134552746,-150.82,0.00043948,120]
[393963318,1763134552796,-151.0,0.00044,120]
[393963319,1763134552844,-151.0,0.00044,120]
[393963320,1763134552893,-150.0,0.00044,57]
[393963321,1763134552946,-150.82,0.00044048,120]
[393963322,1763134553002,-150.82,0.00044148,120]
[393963323,1763134553055,-150.82,0.00044248,120]
[393963324,1763134553106,-150.82,0.00044348,120]
[393963325,1763134553162,-150.82,0.00044448,120]
[393963326,1763134553221,-150.82,0.00044548,120]
[393963327,1763134553275,-150.82,0.00044648,120]
[393963328,1763134553327,-150.82,0.00044748,120]
[393963329,1763134553384,-409.95,0.00044845,120]
[393963330,1763134553446,-150.82,0.00044848,120]
[393963331,1763134553504,-1130.22261934,0.000449,60]
[393963332,1763134553557,-150.82,0.00044948,120]
[393963333,1763134553611,-150.82,0.00045048,120]
[393963334,1763134553675,-200.0,0.00045103,120]
[393963335,1763134553734,-150.82,0.00045148,120]
[393963336,1763134553794,-150.82,0.00045248,120]
[393963337,1763134553850,-151.0,0.000453,120]
[393963338,1763134553903,-151.0,0.000453,120]
[393963339,1763134553958,-150.82,0.00045348,120]
[393963340,1763134554008,-25019.0754,0.00045444,30]
[393963341,1763134554061,-150.82,0.00045448,120]
[393963342,1763134554114,-150.82,0.00045548,120]
[393963343,1763134554170,-150.82,0.00045648,120]
[393963344,1763134554225,-150.82,0.00045748,120]
[393963345,1763134554280,-150.82,0.00045848,120]
[393963346,1763134554335,-150.82,0.00045948,120]
[393963347,1763134554389,-150.82,0.00046048,120]
[393963348,1763134554443,-150.82,0.00046148,120]
[393963349,1763134554501,-150.82,0.00046248,120]
[393963350,1763134554555,-150.82,0.00046348,120]
[393963351,1763134554609,-150.82,0.00046448,120]
[393963352,1763134554659,-1208.02,0.00046457,30]
[393963353,1763134554711,-151.0,0.000465,120]
[393963354,1763134554761,-151.0,0.000465,120]
[393963355,1763134554811,-200.0,0.00046544,120]
[393963356,1763134554865,-150.82,0.00046548,120]
[393963357,1763134554921,-186.62049904,0.000466,120]
[393963358,1763134554979,-175.86085535,0.000466,120]
[393963359,1763134555031,-263.92581832,0.000466,120]
[393963360,1763134555081,-162.58424941,0.000466,120]
[393963361,1763134555130,-222.27190957,0.000466,120]
[393963362,1763134555182,-182.00917671,0.000466,120]
[393963363,1763134555235,-315.14686766,0.000466,120]
[393963364,1763134555289,-150.82,0.00046648,120]
[393963365,1763134555343,-150.82,0.00046748,120]
[393963366,1763134555397,-150.82,0.00046848,120]
[393963367,1763134555451,-150.82,0.00046948,120]
[393963368,1763134555505,-150.82,0.00047048,120]
[393963369,1763134555560,-150.82,0.00047148,120]
[393963370,1763134555613,-150.82,0.00047248,120]
[393963371,1763134555830,-150.82,0.00047348,120]
[393963372,1763134555885,-62263.2886,0.00047444,30]
[393963373,1763134555941,-150.82,0.00047448,120]
[393963374,1763134555999,-150.82,0.00047548,120]
[393963375,1763134556053,-150.82,0.00047648,120]
[393963376,1763134556105,-150.82,0.00047748,120]
[393963377,1763134556155,-151.0,0.000478,120]
[393963378,1763134556206,-151.0,0.000478,120]
[393963379,1763134556261,-150.82,0.00047848,120]
[393963380,1763134556316,-151.57,0.00047948,120]
[393963381,1763134556370,-150.0,0.0004797,120]
[393963382,1763134556422,-200.0,0.00047986,120]
[393963383,1763134556480,-315.14686766,0.00048,120]
[393963384,1763134556532,-3000.0,0.000485,120]
[393963385,1763134556583,-699.91,0.000488,30]
[393963386,1763134556634,-699.91,0.000488,30]
[393963387,1763134556686,-699.91,0.000488,30]
[393963388,1763134556737,-699.91,0.000488,30]
[393963389,1763134556792,-699.91,0.000488,30]
[393963390,1763134556851,-699.91,0.000488,30]
[393963391,1763134556900,-699.91,0.000488,30]
[393963392,1763134556950,-699.91,0.000488,30]
[393963393,1763134556997,-371.1,0.00048937,30]
[393963394,1763134557047,-169.81,0.00048937,30]
[393963395,1763134557098,-369.85,0.00048937,30]
[393963396,1763134557151,-151.0,0.000491,120]
[393963397,1763134557202,-151.0,0.000491,120]
[393963398,1763134557252,-500.0,0.00049315,33]
[393963399,1763134557310,-44473.7776,0.00049444,120]
[393963400,1763134557368,-315.14686766,0.000495,120]
[393963401,1763134557419,-200.0,0.00049614,120]
[393963402,1763134557470,-833.0,0.0004975,30]
[393963403,1763134557520,-150.0,0.0004975,30]
[393963404,1763134557569,-150.0,0.0004975,30]
[393963405,1763134557616,-150.0,0.0004975,30]
[393963406,1763134557666,-150.0,0.0004975,30]
[393963407,1763134557718,-416.5,0.0004975,30]
[393963408,1763134557767,-416.5,0.0004975,30]
[393963409,1763134557815,-416.5,0.0004975,30]
[393963410,1763134557866,-409.95,0.00049892,120]
[393963411,1763134557919,-200.0,0.0005,120]
[393963412,1763134557975,-715.0,0.0005,30]
[393963413,1763134558026,-478.82688331,0.0005,30]
[393963414,1763134558078,-151.0,0.000503,120]
[393963415,1763134558139,-151.0,0.000503,120]
[393963416,1763134558199,-2145.0,0.00050749,120]
[393963417,1763134558257,-270.0,0.00051,120]
[393963418,1763134558308,-150.0,0.00051,120]
[393963419,1763134558353,-245.846,0.00051,120]
[393963420,1763134558398,-575.0,0.00051,120]
[393963421,1763134558447,-315.14686766,0.00051,120]
[393963422,1763134558494,-793.0,0.00051,120]
[393963423,1763134558546,-200.0,0.00051242,120]
[393963424,1763134558596,-151.0,0.000516,120]
[393963425,1763134558653,-151.0,0.000516,120]
[393963426,1763134558711,-150.0,0.00052,120]
[393963427,1763134558768,-298.0,0.00052,30]
[393963428,1763134558821,-315.14686766,0.000525,120]
[393963429,1763134558871,-151.0,0.000529,120]
[393963430,1763134558921,-151.0,0.000529,120]
[393963431,1763134558974,-150.0,0.00053,120]
[393963432,1763134559022,-240.825,0.00053749,120]
[393963433,1763134559071,-150.0,0.00053906,120]
[393963434,1763134559124,-200.0,0.00054,120]
[393963435,1763134559172,-150.0,0.00054,120]
[393963436,1763134559223,-540.849,0.00054,120]
[393963437,1763134559275,-771.532,0.00054,120]
[393963438,1763134559325,-151.0,0.000542,120]
[393963439,1763134559376,-151.0,0.000542,120]
[393963440,1763134559427,-35579.0221,0.00054444,120]
[393963441,1763134559478,-500.0,0.00054794,30]
[393963442,1763134559526,-500.0,0.00054794,30]
[393963443,1763134559578,-500.0,0.00054794,30]
[393963444,1763134559627,-500.0,0.00054794,30]
[393963445,1763134559674,-500.0,0.00054794,30]
[393963446,1763134559724,-500.0,0.00054794,30]
[393963447,1763134559772,-444.17305348,0.00054794,30]
[393963448,1763134559822,-641.4889955,0.00054794,120]
[393963449,1763134559880,-500.0,0.00054794,120]
[393963450,1763134559931,-500.0,0.00054794,120]
[393963451,1763134559989,-500.0,0.00054794,120]
[393963452,1763134560041,-500.0,0.00054794,120]
[393963453,1763134560094,-500.0,0.00054794,120]
[393963454,1763134560151,-502.97150163,0.00054794,120]
[393963455,1763134560210,-500.0,0.00054794,120]
[393963456,1763134560272,-500.0,0.00054794,120]
[393963457,1763134560334,-500.0,0.00054794,120]
[393963458,1763134560394,-499.0,0.00054794,120]
[393963459,1763134560449,-339.40876959,0.00054794,120]
[393963460,1763134560502,-500.0,0.00054794,120]
[393963461,1763134560552,-500.0,0.00054794,120]
[393963462,1763134560601,-500.0,0.00054794,120]
[393963463,1763134560651,-505.55554561,0.00054794,120]
[393963464,1763134560702,-500.0,0.00054794,120]
[393963465,1763134560753,-500.0,0.00054794,120]
[393963466,1763134560802,-500.0,0.00054794,120]
[393963467,1763134560851,-500.0,0.00054794,120]
[393963468,1763134560900,-500.0,0.00054794,120]
[393963469,1763134560949,-500.0,0.00054794,120]
[393963470,1763134560996,-418.045057,0.00054794,120]
[393963471,1763134561048,-500.0,0.00054794,120]
[393963472,1763134561095,-500.0,0.00054794,120]
[393963473,1763134561147,-500.0,0.00054794,120]
[393963474,1763134561334,-500.0,0.00054794,120]
[393963475,1763134561390,-500.0,0.00054794,120]
[393963476,1763134561446,-500.0,0.00054794,120]
[393963477,1763134561503,-500.0,0.00054794,120]
[393963478,1763134561558,-500.0,0.00054794,120]
[393963479,1763134561610,-500.0,0.00054794,120]
[393963480,1763134561664,-500.0,0.00054794,120]
[393963481,1763134561714,-500.0,0.00054794,120]
[393963482,1763134561767,-500.0,0.00054794,120]
[393963483,1763134561820,-500.0,0.00054794,120]
[393963484,1763134561872,-500.0,0.00054794,120]
[393963485,1763134561943,-500.0,0.00054794,120]
[393963486,1763134561998,-500.0,0.00054794,120]
[393963487,1763134562055,-500.0,0.00054794,120]
[393963488,1763134562110,-500.0,0.00054794,120]
[393963489,1763134562168,-500.0,0.00054794,120]
[393963490,1763134562221,-500.0,0.00054794,120]
[393963491,1763134562274,-189.6,0.00054794,120]
[393963492,1763134562333,-500.0,0.00054794,120]
[393963493,1763134562390,-500.0,0.00054794,120]
[393963494,1763134562448,-500.0,0.00054794,120]
[393963495,1763134562503,-500.0,0.00054794,120]
[393963496,1763134562557,-500.0,0.00054794,120]
[393963497,1763134562608,-500.0,0.00054794,120]
[393963498,1763134562658,-500.0,0.00054794,120]
[393963499,1763134562711,-500.0,0.00054794,120]
[393963500,1763134562764,-500.0,0.00054794,120]
[393963501,1763134562816,-500.0,0.00054794,120]
[393963502,1763134562868,-416.96,0.00054794,120]
[393963503,1763134562925,-500.0,0.00054795,35]
[393963504,1763134563848,251.54118551,0.00030774,30]
[393963505,1763134563903,1425.4000512,0.00031048,30]
[393963506,1763134563993,150.0,0.00030774,30]
[393963507,1763134564339,150.0,0.00054495,120]
[393963508,1763134564396,150.0,0.00054495,120]
[393963509,1763134564453,281.75197015,0.00054495,120]
[393963510,1763134566207,185.62238957,0.000466,120]
[393963511,1763134568291,5517.0,0.000522,120]
[393963512,1763134568540,1219.0,0.00051,120]
[393963513,1763134570958,507.74347007,0.0005474,35]
[393963514,1763134592409,-152.55,0.00038719,120]
[393963515,1763134592469,-152.55,0.00038819,120]
[393963516,1763134592528,-152.55,0.00038919,120]
[393963517,1763134592589,-152.55,0.00039019,120]
[393963518,1763134592642,-152.55,0.00039119,120]
[393963519,1763134592694,-152.55,0.00039219,120]
[393963520,1763134592750,-152.55,0.00039319,120]
[393963521,1763134592803,-152.55,0.00039419,120]
[393963522,1763134592854,-152.622,0.00039519,120]
[393963523,1763134592927,-701.67,0.00046459,30]
[393963524,1763134592983,-1705.70922546,0.00054758,120]
[393963525,1763134675036,150.0,0.00016576,120]
[393963528,1763134743600,2976.99889536,0.00041459,120]
[393963529,1763134766024,-244.94300673,0.00015588,2]
[393963530,1763134766058,-1200.0,0.0001559,2]
[393963531,1763134766092,-1200.0,0.0001559,2]
[393963532,1763134766125,-300.0,0.0001559,2]
[393963533,1763134766156,-500.0,0.00015591,2]
[393963534,1763134766186,-500.0,0.00015591,2]
[393963535,1763134766217,-500.0,0.00015591,2]
[393963536,1763134766247,-500.0,0.00015591,2]
[393963537,1763134766400,-110.12398654,0.00015591,2]
[393963539,1763134772004,-316.18386427,0.00015591,2]
[393963540,1763134772040,-357.9463874,0.00015591,2]
[393963541,1763134772071,-500.0,0.00015591,2]
[393963542,1763134772105,-500.0,0.00015591,2]
[393963543,1763134772136,-500.0,0.00015591,2]
[393963544,1763134772168,-500.0,0.00015591,2]
[393963545,1763134772201,-502.58859303,0.00015591,2]
[393963546,1763134772237,-500.0,0.00015591,2]
[393963547,1763134772274,-908.4,0.0001575,2]
[393963548,1763134772307,-151.0,0.0001575,2]
[393963549,1763134772340,-151.0,0.0001575,2]
[393963550,1763134772379,-74.7723106,0.0001575,2]
[393963551,1763134772606,-76.2276894,0.0001575,2]
[393963552,1763134778084,-297.65800971,0.0001575,2]
[393963553,1763134778329,-151.0,0.00015918,2]
[393963554,1763134778364,-151.0,0.00015918,2]
[393963555,1763134778398,-151.0,0.00015918,2]
[393963556,1763134778432,-151.0,0.00015918,2]
[393963557,1763134778467,-151.0,0.00015918,2]
[393963558,1763134778500,-151.0,0.00015918,2]
[393963559,1763134778537,-151.0,0.00015918,2]
[393963560,1763134778571,-151.0,0.00015918,2]
[393963561,1763134778606,-151.0,0.00015918,2]
[393963562,1763134778642,-151.0,0.00015918,2]
[393963563,1763134778678,-151.0,0.00015918,2]
[393963564,1763134778713,-151.0,0.00015918,2]
[393963565,1763134778747,-151.0,0.00015918,2]
[393963566,1763134778783,-151.0,0.00015918,2]
[393963567,1763134778817,-151.0,0.00015918,2]
[393963568,1763134778853,-151.0,0.00015918,2]
[393963569,1763134778889,-151.0,0.00015918,2]
[393963570,1763134778924,-151.0,0.00015918,2]
[393963571,1763134778956,-151.0,0.00015918,2]
[393963572,1763134778988,-151.0,0.00015918,2]
[393963573,1763134779581,-3364.69398058,0.00015926,2]
[393963577,1763134952470,-500.0,0.00015591,2]
[393963578,1763134952504,-163.96507343,0.00015591,2]
[393963579,1763134952535,-233.2,0.00015591,2]
[393963580,1763134952567,-500.0,0.0001565,2]
[393963581,1763134952596,-234.6662,0.00015827,2]
[393963582,1763134952632,-156.3254563,0.00015873,2]
[393963583,1763134952663,-1852.42,0.0001591,2]
[393963584,1763134952696,-515.79,0.00015917,3]
[393963585,1763134952726,-300.0,0.00015917,2]
[393963586,1763134952758,-300.0,0.00015917,2]
[393963587,1763134952792,-151.0,0.00015918,2]
[393963588,1763134952823,-34.27654054,0.00015918,2]
[393963589,1763134952969,-116.72345946,0.00015918,2]
[393963590,1763134953002,-151.0,0.00015918,2]
[393963591,1763134953034,-151.0,0.00015918,2]
[393963592,1763134953069,-151.0,0.00015918,2]
[393963593,1763134953103,-151.0,0.00015918,2]
[393963594,1763134953137,-151.0,0.00015918,2]
[393963595,1763134953171,-151.0,0.00015918,2]
[393963596,1763134953204,-151.0,0.00015918,2]
[393963597,1763134953235,-151.0,0.00015918,2]
[393963598,1763134953268,-151.0,0.00015918,2]
[393963599,1763134953300,-151.0,0.00015918,2]
[393963600,1763134953332,-151.0,0.00015918,2]
[393963601,1763134953368,-151.0,0.00015918,2]
[393963602,1763134953400,-151.0,0.00015918,2]
[393963603,1763134953430,-151.0,0.00015918,2]
[393963604,1763134953462,-151.0,0.00015918,2]
[393963605,1763134953494,-295.19204604,0.00015918,2]
[393963606,1763134953529,-1200.0,0.00015925,2]
[393963607,1763134953559,-300.0,0.00015925,2]
[393963608,1763134954100,-178.46858658,0.00015926,2]
[393963609,1763134954133,-1646.178989,0.00015926,2]
[393963610,1763134954152,-10000.01,0.00015926,2]
[393963611,1763134954169,-4506.29179026,0.00015926,2]
[393963612,1763134954179,-500.0,0.00015926,2]
[393963613,1763134954190,-500.0,0.00015926,2]
[393963614,1763134954199,-165.60994951,0.00015926,2]
[393963615,1763134954212,-200.44531021,0.00015926,2]
[393963616,1763134954222,-314.52381947,0.00015926,2]
[393963617,1763134954232,-500.0,0.00015926,2]
[393963618,1763134954243,-500.0,0.00015926,2]
[393963619,1763134954253,-500.0,0.00015926,2]
[393963620,1763134954263,-500.0,0.00015926,2]
[393963621,1763134954273,-500.0,0.00015926,2]
[393963622,1763134954282,-500.0,0.00015926,2]
[393963623,1763134954292,-500.0,0.00015926,2]
[393963624,1763134954302,-313.13913055,0.00015926,2]
[393963625,1763134954346,-186.86086945,0.00015926,2]
[393963626,1763134954386,-502.25472439,0.00015926,2]
[393963627,1763134956024,154.84887672,0.00015846,2]
[393963628,1763134964467,1200.0,0.00015926,2]
[393963629,1763135059882,-2352.339877,0.00015793,2]
[393963630,1763135059915,-2309.94977892,0.00015827,2]
[393963631,1763135059946,-156.3254563,0.00015873,2]
[393963632,1763135102050,300.0,0.00015926,2]
[393963633,1763135102116,62.77977556,0.00015926,2]
[393963634,1763135102151,1137.22022444,0.00015926,2]
[393963635,1763135103410,300.0,0.00015926,2]
[393963636,1763135105326,300.0,0.00015926,2]
[393963638,1763135157632,192.08113678,0.00015926,2]
[393963639,1763135161879,300.0,0.00015926,2]
[393963640,1763135163500,166.66,0.00015847,2]
[393963641,1763135179012,2500.0,0.00015827,2]
[393963643,1763135192013,171.86246686,0.00015847,2]
[393963644,1763135203910,500.0,0.00015926,2]
[393963646,1763135221719,300.0,0.00015926,2]
[393963647,1763135222543,500.0,0.00015926,2]
[393963648,1763135243693,2794.3819,0.00015827,2]
[393963649,1763135253253,500.0,0.00015926,2]
[393963651,1763135254687,337.80427192,0.00015926,2]
[393963652,1763135254721,162.19572808,0.00015926,2]
[393963653,1763135262955,9837.81427192,0.00015847,2]
[393963654,1763135262986,7888.26473984,0.00015847,2]
[393963656,1763135265033,644.0,0.00015926,2]
[393963657,1763135282518,300.0,0.00015926,2]
[393963658,1763135282560,200.0,0.00015758,2]
[393963659,1763135286618,500.0,0.00015926,2]
[393963660,1763135299208,467.74526016,0.00015827,2]
[393963661,1763135299235,532.25473984,0.00015827,2]
[393963662,1763135299753,500.0,0.00015926,2]